Cogmind - Beta 13 @@@ ROGUE MODE // 2024.06.02 @ 15:52:20 Player: Arioch Result: Destroyed by 6R-5WH(R) with Subdweller Laser Performance ------------- Evolutions (0) 0 Regions Visited (3) 600 Robots Destroyed (25) 125 Value Destroyed (557) 557 Prototype IDs (0) 0 Alien Tech Used (0) 0 Bonus (32) 32 TOTAL SCORE: 1314 Bonus ------- Follower Combat Kills 32 Cogmind --------- Core Integrity 0/250 Matter 300/300 Energy 200/200 System Corruption 1% Temperature Cool (6) Movement Walking (190) Ox1 Location -10/Subcaves Parts ------- > --- POWER (1) -------- Subdweller Power Source > --- PROPULSION (2) --- Aluminum Leg > --- UTILITY (2) ------ Small Storage Unit Signal Interpreter > --- WEAPON (2) ------- Barrage Gun Heavy Battle Rifle > --- INVENTORY (8) ---- Sensor Array Experimental Sensor Array Hardened Light Armor Plating Subdweller Laser Autogun Autogun Battle Cannon Peak State ------------ > --- POWER ------------ Subdweller Power Source > --- PROPULSION ------- Aluminum Leg Aluminum Leg > --- UTILITY ---------- Small Storage Unit Signal Interpreter > --- WEAPON ----------- Particle Gun Heavy Battle Rifle > --- INVENTORY -------- Sensor Array Experimental Sensor Array Hardened Light Armor Plating Subdweller Laser Autogun Autogun Barrage Gun Battle Cannon [Rating: 14] Favorites ----------- Power Ion Engine Engine Ion Engine Power Core Light Nuclear Core Propulsion Aluminum Leg Treads Light Treads Leg Aluminum Leg Utility Small Storage Unit Storage Small Storage Unit Processor Signal Interpreter Protection Utility Shielding Weapon Particle Gun Energy Gun Particle Gun Energy Cannon Beam Cannon Ballistic Gun Autogun Build | -11 -10 -10 -10 ------- Run | Yrd Mat Min Sub Slots Evolved . | . . . . Power . | . . . . Propulsion . | . . . . Utility . | . . . . Weapon . | . . . . Parts Attached 30 | 6 8 10 6 Power 8 | 1 2 3 2 Engine 7 | 1 2 2 2 Core 1 | . . 1 . Reactor . | . . . . Propulsion 8 | 2 . 5 1 Treads 2 | . . 2 . Leg 6 | 2 . 3 1 Wheel . | . . . . Hover . | . . . . Flight . | . . . . Utility 4 | 1 3 . . Device . | . . . . Storage 2 | 1 1 . . Processor 1 | . 1 . . Hackware . | . . . . Protection 1 | . 1 . . Artifact . | . . . . Weapon 10 | 2 3 2 3 Energy Gun 3 | . 1 1 1 Energy Cannon 1 | . 1 . . Ballistic Gun 6 | 2 1 1 2 Ballistic Cannon . | . . . . Launcher . | . . . . Special Weapon . | . . . . Impact Weapon . | . . . . Slashing Weapon . | . . . . Piercing Weapon . | . . . . Special Melee Weapon . | . . . . Unidentified Prototypes . | . . . . Parts Lost 9 | . 2 2 5 Power 4 | . 1 1 2 Propulsion 3 | . . 1 2 Utility 1 | . 1 . . Weapon 1 | . . . 1 Highest Loss Streak 2 | . 2 1 1 To Critical Strikes . | . . . . Average Slot Usage (%) 98 | . 96 99 97 Engine 11 | . 13 8 13 Core 2 | . . 4 . Treads 4 | . . 9 . Leg 23 | . 28 17 26 Storage 14 | . 19 14 14 Processor 12 | . 4 14 14 Energy Gun 12 | . 1 14 13 Energy Cannon 1 | . 11 . . Ballistic Gun 14 | . 14 14 14 Naked Turns . | . . . . Heaviest Build 17 | 12 14 16 17 Greatest Support 40 | 20 20 40 20 Greatest Overweight (x) 1 | . . . 1 Average Overweight (x) . | . . . . Largest Inventory Capacity 8 | 8 8 8 8 Average Capacity 7 | 7 8 8 8 Most Carried 8 | 4 8 8 8 Average Carried 7 | 2 6 7 7 Final Capacity 8 | 8 8 8 8 Final Carried 8 | 4 8 8 7 Class Distribution -------------------- 61% | Mutant 38% | Scavenger-Mutant Dominant Class ---------------- Mutant | -10/Materials Mutant | -10/Mines Scavenger-Mutant | -10/Subcaves Resources | -11 -10 -10 -10 ----------- Run | Yrd Mat Min Sub Matter Collected 922 | 221 112 258 331 Remotely . | . . . . Salvage Created 647 | . 170 209 268 Parts 52 | . 13 17 22 Haulers Intercepted 1 | . 1 . . Recyclers Shooed 1 | . . 1 . Parts Field Recycled . | . . . . Retrieved Matter . | . . . . Parts Self-Destructed 17 | . . . 17 Prevented . | . . . . Kills | -11 -10 -10 -10 ------- Run | Yrd Mat Min Sub Combat Hostiles Destroyed 23 | . 6 10 7 Guns 20 | . 3 10 7 Cannons 3 | . 3 . . Classes Destroyed 5 | . 3 1 1 Hauler 1 | . 1 . . Watcher 1 | . 1 . . Swarmer 13 | . 6 7 . Grunt 5 | . . 3 2 Subdweller 5 | . . . 5 Best Kill Streak 7 | . 7 3 2 Combat Bots Only 6 | . 6 3 2 Max Kills in Single Turn 2 | . 2 2 1 Gunslinging 1 | . . 1 . Exploded . | . . . . Melee . | . . . . Uniques/NPCs Destroyed . | . . . . Combat | -11 -10 -10 -10 -------- Run | Yrd Mat Min Sub Hostile Shots Fired 164 | . 44 61 59 Missed 46 | . 7 18 21 Damage Taken 1397 | . 331 395 671 Core 261 | . 33 91 137 Absorbed by Shields . | . . . . Core Remaining (%) 100 | 100 . . . Volleys Fired 118 | . 12 33 73 Largest 2 | . 2 2 2 Hottest 98 | . 80 88 98 Shots Fired 225 | . 24 64 137 Gun 213 | . 12 64 137 Cannon 12 | . 12 . . Launcher . | . . . . Special . | . . . . Kinetic 121 | . 12 33 76 Thermal 104 | . 12 31 61 Explosive . | . . . . Electromagnetic . | . . . . Robot Hit Streak 13 | . 4 6 13 Robot Miss Streak 5 | . 3 5 5 Penetration Max . | . . . . Secondary Targets 4 | . . 3 1 Max Gunslinging Chain 1 | . . 1 1 Shots Hit Robots 104 | . 12 41 51 Core Hits 35 | . 8 15 12 Critical Kills . | . . . . Critical Parts Destroyed . | . . . . Critical Strikes 6 | . . 2 4 Burn 6 | . . 2 4 Melee Attacks . | . . . . Impact . | . . . . Slashing . | . . . . Piercing . | . . . . Sneak Attacks . | . . . . Combat Hostiles . | . . . . Follow-up Attacks . | . . . . Damage Inflicted 1779 | . 247 647 885 Guns 1632 | . 106 641 885 Cannons 141 | . 141 . . Explosions . | . . . . Melee . | . . . . Ramming 6 | . . 6 . Kinetic 967 | . 106 306 555 Thermal 806 | . 141 335 330 Explosive . | . . . . Electromagnetic . | . . . . Impact . | . . . . Slashing . | . . . . Piercing . | . . . . Highest Corruption 1 | . 1 1 1 Average Corruption 1 | . 1 1 1 Corruption Purged . | . . . . Corruption Blocked . | . . . . Effects 16 | . . 7 9 Message Errors 4 | . . 2 2 Matter Fused 6 | . . 3 3 Heat Flow Errors 1 | . . . 1 Energy Discharges 4 | . . 2 2 Alerts 1 | . . . 1 Overload Shots . | . . . . Overflow Damage 11 | . 11 . . Projectiles 11 | . 11 . . Explosions . | . . . . Melee . | . . . . Knockbacks . | . . . . Impact . | . . . . Kinetic . | . . . . Secondary . | . . . . Self-Inflicted Damage . | . . . . Shots . | . . . . Rammed 2 | . . 2 . Targets Rammed 4 | . . 4 . Kicked 2 | . . 2 . Crushed . | . . . . Highest Temperature 369 | . 138 369 238 Average Temperature 105 | . 80 137 28 Received Heat Transfer 309 | . . 81 228 Effects 6 | . . 6 . Energy Bleed 1 | . . 1 . Interference 4 | . . 4 . Damage (minor) 1 | . . 1 . Siege Activations . | . . . . Robots Corrupted . | . . . . Combat Hostiles . | . . . . Parts Fried . | . . . . Impact Corruptions . | . . . . Robots Melted . | . . . . Combat Hostiles . | . . . . Parts Melted 2 | . 1 . 1 Heat Transferred 2331 | . 296 962 1073 Parts Sabotaged . | . . . . Parts Stolen . | . . . . Parts Stripped . | . . . . Power Chain Reactions . | . . . . Alert | -11 -10 -10 -10 ------- Run | Yrd Mat Min Sub Peak Influence 221 | . 210 221 . Initial 81 | . . 81 . Average 131 | . 137 138 . Maximum Alert Level 1 | . 1 1 . Low Security (%) 69 | 100 62 69 . Level 1 30 | . 37 30 . Level 2 . | . . . . Level 3 . | . . . . Level 4 . | . . . . Level 5 . | . . . . High Security . | . . . . Max Security . | . . . . Squads Dispatched . | . . . . Investigation . | . . . . Extermination . | . . . . Reinforcement . | . . . . Assault . | . . . . Garrison . | . . . . Intercept . | . . . . Searches Triggered . | . . . . Construction Impeded . | . . . . Haulers Reinforced . | . . . . Active Scanning Responses . | . . . . Cargo Convoy Interrupts . | . . . . Stealth | -11 -10 -10 -10 --------- Run | Yrd Mat Min Sub Distress Signals 1 | . 1 . . Communications Jammed . | . . . . Distress Signals . | . . . . Times Spotted 31 | . 8 13 10 Peak Tracking Total 7 | . 7 3 2 Tactical Retreats 2 | . 1 1 . Traps | -11 -10 -10 -10 ------- Run | Yrd Mat Min Sub Traps Triggered 1 | . 1 . . Indirectly . | . . . . Trap Hack Attempts . | . . . . Triggered . | . . . . Disarmed . | . . . . Reprogrammed . | . . . . Reused . | . . . . Traps Extracted . | . . . . Installed . | . . . . Triggered . | . . . . Machines | -11 -10 -10 -10 ---------- Run | Yrd Mat Min Sub Machines Disabled . | . . . . Max in Single Turn . | . . . . Machines Repaired . | . . . . Machines Dismantled . | . . . . Machines Sabotaged . | . . . . Overloaded Fab Kills . | . . . . Hacking | -11 -10 -10 -10 --------- Run | Yrd Mat Min Sub Machines Accessed 1 | . . . 1 Terminals . | . . . . Fabricators . | . . . . Repair Stations . | . . . . Recycling Units . | . . . . Scanalyzers . | . . . . Garrison Access . | . . . . Total Hacks 3 | . . . 3 Successful 3 | . . . 3 Failed . | . . . . Catastrophic . | . . . . Database Lockouts . | . . . . Manual . | . . . . Terminals . | . . . . Fabricators . | . . . . Repair Stations . | . . . . Recycling Units . | . . . . Scanalyzers . | . . . . Garrison Access . | . . . . Terminal Hacks 3 | . . . 3 Record 3 | . . . 3 Fabricator Hacks . | . . . . Repair Station Hacks . | . . . . Recycling Unit Hacks . | . . . . Scanalyzer . | . . . . Garrison Access Hacks . | . . . . Unauthorized Hacks . | . . . . Terminals . | . . . . Fabricators . | . . . . Repair Stations . | . . . . Recycling Units . | . . . . Scanalyzers . | . . . . Garrison Access . | . . . . Data Cores Recovered . | . . . . Used . | . . . . Hacking Detections . | . . . . Full Trace Events . | . . . . Feedback Events . | . . . . Feedback Blocked . | . . . . Robot Schematics Acquired . | . . . . Robots Built . | . . . . Authchips . | . . . . Time . | . . . . Total Robot Build Rating . | . . . . Part Schematics Acquired . | . . . . Parts Built . | . . . . Authchips . | . . . . Time . | . . . . Total Part Build Rating . | . . . . Parts Repaired . | . . . . Time . | . . . . Parts Recycled . | . . . . Recycled Matter . | . . . . Retrieved Matter . | . . . . Retrieved Components . | . . . . Parts Scanalyzed . | . . . . Part Schematics Acquired . | . . . . Parts Damaged . | . . . . Bothacking | -11 -10 -10 -10 ------------ Run | Yrd Mat Min Sub Used RIF Installer . | . . . . Robots Hacked . | . . . . Non-combat . | . . . . Combat . | . . . . Robot Hacks Applied . | . . . . Relay Couplers Released . | . . . . Fabnet Peak Effective % . | . . . . Robots Rewired . | . . . . Allies Hacked . | . . . . Hacks Repelled . | . . . . Allies | -11 -10 -10 -10 -------- Run | Yrd Mat Min Sub Total Allies 1 | . . 1 . Largest Group 1 | . . 1 . Highest-Rated Group 31 | . . 31 . Highest-Rated Ally 31 | . . 31 . Total Orders . | . . . . Ally Attacks 4 | . . 4 . Total Damage 65 | . . 65 . Kills 2 | . . 2 . Allies Corrupted . | . . . . Allies Melted . | . . . . Intel | -11 -10 -10 -10 ------- Run | Yrd Mat Min Sub Robot Analysis Total . | . . . . Derelict Logs Recovered 2 | . . 1 1 Drone Launches . | . . . . Drone Recoveries . | . . . . Exploration | -11 -10 -10 -10 ------------- Run | Yrd Mat Min Sub Turns Passed 2307 | 67 275 947 1018 Spaces Moved 1466 | 46 182 604 634 Core 2 | 2 . . . Treads 171 | . . 171 . Legs 1293 | 44 182 433 634 Wheels . | . . . . Hover . | . . . . Flight . | . . . . Fastest Speed 50 | 50 120 120 120 Average Speed 125 | 116 120 131 122 Slowest Speed 190 | 120 120 160 190 Overloaded Moves . | . . . . Propulsion Burnouts . | . . . . Robots Hopped . | . . . . Cave-ins Triggered . | . . . . Exploration Rate (%) 48 | 4 33 100 56 Regions Visited 3 Branch Regions 2 Pre-discovered Areas 1 | . . . 1 Known Exits Taken 2 | . 1 1 . Unknown Exits Taken 1 | 1 . . . Scrap Searched 5 | . . 2 3 Spaces Dug . | . . . . Terrain Destroyed 1 | . . . 1 Melee . | . . . . Projectile 1 | . . . 1 AOE . | . . . . Terrain Rammed . | . . . . Walls Destroyed . | . . . . Machines Disabled . | . . . . Actions | -11 -10 -10 -10 --------- Run | Yrd Mat Min Sub Total 1717 | 56 218 702 741 Wait 61 | . 1 37 23 Move 1463 | 45 181 603 634 Hop . | . . . . Pick Up 21 | 5 7 6 3 Fast Attach 12 | 5 5 1 1 Attach 9 | 1 1 4 3 Detach 2 | . 2 . . Swap 9 | . 2 5 2 Drop 18 | . 7 9 2 Fire 118 | . 12 33 73 Melee . | . . . . Ram . | . . . . Kick 2 | . . 2 . Crush 2 | . . 2 . Escape Stasis . | . . . . Rewire . | . . . . Trap . | . . . . Miscellaneous . | . . . . Route ------- -11/Scrapyard -10/Materials (discovered 2 exits: *Min x2) -10/Mines (discovered 3 exits: *Mat x2 / *Sub) -10/Subcaves History --------- Turn | Location | Event 24 | -11/Scrapyard | Discovered new exit (range 15) 68 | -11/Scrapyard | Entered Materials 101 | -10/Materials | Discovered new exit (range 13) 134 | -10/Materials | Discovered new exit (range 8) 277 | -10/Materials | Identified exit to Mines 343 | -10/Materials | Entered Mines 349 | -10/Mines | Build established: Mutant 366 | -10/Mines | Discovered new exit (range 12) 378 | -10/Mines | Identified exit to Materials 553 | -10/Mines | Discovered exit to Materials (range 5) 617 | -10/Mines | Found a damaged Exp. Sensor Array with a note attached 620 | -10/Mines | Found Prototype Device 639 | -10/Mines | Received a Mining Laser from a helpful Derelict 981 | -10/Mines | Learned 4 Materials zone layouts 993 | -10/Mines | Received a Rocket Launcher from a helpful Derelict 1277 | -10/Mines | Discovered new exit (range 9) 1288 | -10/Mines | Identified exit to Subcaves 1290 | -10/Mines | Entered Subcaves 1328 | -10/Subcaves | Core integrity fell below 50% 1487 | -10/Subcaves | Learned Materials garrison access intel 1576 | -10/Subcaves | A swath of the cavern ceiling suddenly collapsed 1616 | -10/Subcaves | Core integrity fell below 20% 1729 | -10/Subcaves | Shifting Twisted Machinery released Barrage Gun 1899 | -10/Subcaves | A swath of the cavern ceiling suddenly collapsed 1909 | -10/Subcaves | Learned location of Zion (-7) 1909 | -10/Subcaves | Met a Zionite searching for "candidates" 1923 | -10/Subcaves | Build established: Scavenger-Mutant 2112 | -10/Subcaves | Visited Clippyterm 2308 | -10/Subcaves | Destroyed by 6R-5WH(R) with Subdweller Laser Last Messages --------------- 15-THF(R) destroyed. Acquired Sub. Power Source. Acquired 43 matter. Acquired 4 matter. Aluminum Leg destroyed. 2R-QVZ(R) destroyed. 8B-4RY(R) destroyed. System corrupted: Matter fused (-8). Acquired 18 matter. System corrupted: IFF burst signal emitted. Acquired 3 matter. Particle Gun destroyed. 6R-5WH(R) affixes Scrap Shield Fragment to Scrap Shield. Acquired 10 matter. Acquired 7 matter. 6R-5WH(R) affixes Scrap Shield Fragment to Scrap Shield. 3ZO4#X/RX4E0B33 HUYO7TX|WAHBEPQ Acquired 7 matter. Map ----- +----------------------------------------------------+ | ???????????????????????????????????????????? | | ???????????????????????????????????????????? | | ???????????????????????????????????????????? | | ???????????????????????????????????????????? | | ???????????????????????????????????????????? | | ???????????????????????????????????????????? | | ???????????????????????????????????????????? | | ???????????????????????????????????????????? | | ???????????????????????????????????????????? | | ???????????????????????????????????????????? | | ???????????????????????????????????????????? | | ???????????????????????????????????????????? | | ?????????????????????###???????????????????? | | ???????????????????### ???????????????????? | | ???????????????????? ???????????????????? | | ????????????????????? ##?????????????????? | | ?????????????????????# ###???????????????? | | ??????????????????# ## # #???????????????? | | ??????????????????? ##???????????????? | | ??????????????????????# #???????????????? | | ??????????????????????## ####?????????????? | | ??????????????????????##; R #?????????????? | | ?????????????????????## #?????????????? | | ?????????????????????# "##?????????????? | | ???????????????????### !& #??????????????? | | ???????????????????# &@&"#??????????????? | | ???????????????????## *R"#??????????????? | | ??????????????????### [###??????????????? | | ?????????????????## &%#????????????????? | | ????????????????## *&#????????????????? | | ????????????????# #????????????????? | | ????????????????## ##????????????????? | | ?????????????????# # ##?????????????????? | | ????????????????### # #??????????????????? | | ?????????# ## # # ##?????????????????? | | ????????????? ## #?????????????????? | | ??????????? # ##?????????????????? | | ??????????? #???# ##?????????????????? | | ???????????# ????## #?????????????????? | | ???????????# #?????# ##?????????????????? | | ??????????## ####### ##????????????????? | | ??????##### *%## #????????????????? | | ??##### = #????????????????? | | ?## #????????????????? | | ?# #### #????????????????? | | ## #??# #????????????????? | | # ##?# ##????????????????? | | #?# #?????????????????? | | = ### ####??????????????? | | ] ### ## "#??????????????? | +----------------------------------------------------+ Best States ------------- Heat Dissipation 25 Energy Generation 15 Energy Capacity 250 Matter Stores 300 Matter Capacity 350 Sight Range 16 Terrain Scan Density 10 Utility Shielding 33 Evasion (%) 55 Recoil Reduction 2 Item Schematics ----------------- None Robot Schematics ------------------ None Fabricated ------------ Nothing Alien Tech Used ----------------- None Achievements -------------- None Challenges ------------ None Game ------ Seed GravmagHellfireAccelerator Manual? 0 Play Time 00:23:38 Cumulative 42.1 hours Start 2024.06.02 @ 15:24:29 End 2024.06.02 @ 15:52:20 Sessions 1 Manual Loads 0 Difficulty Rogue Special Mode None Game No. 38 Rogue 38 Adventurer 0 Explorer 0 Win Type - Total 0 Types 0/0/0/0/0/0/0/0/0 Lore% 26 Gallery% 31 Achievement% 28 Wizard Run 0 Options --------- Layout 1 ASCII 0 Keyboard 0 Movement Numpad Keybinds 0 Fullscreen 1 Font 20/SmallcapsGlow Map View 54x42 Zoom Use 0% Tactical HUD 0 Map Filters NONE Filters NONE Steam 1 RUN: db178091-0297-4d2d-9fa6-5930bf95806a